Cogmind - Beta 13 @@@ ROGUE MODE // 2024.04.20 @ 13:09:42 // Halloween2019/Abominations Player: Minty Result: Destroyed by Minor Abomination with Medium Laser Performance ------------- Evolutions (0) 0 Regions Visited (1) 200 Robots Destroyed (3) 15 Value Destroyed (210) 210 Prototype IDs (0) 0 Alien Tech Used (0) 0 Bonus (0) 0 TOTAL SCORE: 425 Bonus ------- None Cogmind --------- Core Integrity 0/250 Matter 246/300 Energy 99/100 System Corruption 0% Temperature Cool (9) Movement Rolling (80) Location -10/Materials Parts ------- > --- POWER (1) -------- (None) > --- PROPULSION (2) --- Wheel > --- UTILITY (2) ------ Small Storage Unit Visual Processing Unit > --- WEAPON (2) ------- Assault Rifle > --- INVENTORY (8) ---- Ion Engine Light Treads Light Treads Aluminum Leg Hover Unit Peak State ------------ > --- POWER ------------ Light Ion Engine > --- PROPULSION ------- Aluminum Leg Aluminum Leg > --- UTILITY ---------- Small Storage Unit Visual Processing Unit > --- WEAPON ----------- Light Assault Rifle Light Assault Rifle > --- INVENTORY -------- Ion Engine Light Treads Light Treads Wheel Wheel Assault Rifle [Rating: 8] Favorites ----------- Power Light Ion Engine Engine Light Ion Engine Propulsion Aluminum Leg Leg Aluminum Leg Wheel Wheel Hover Unit Hover Unit Utility Small Storage Unit Storage Small Storage Unit Processor Visual Processing Unit Weapon Light Assault Rifle Energy Gun Particle Gun Ballistic Gun Light Assault Rifle Build | -11 -10 ------- Run | Yrd Mat Slots Evolved . | . . Power . | . . Propulsion . | . . Utility . | . . Weapon . | . . Parts Attached 11 | . 11 Power 1 | . 1 Engine 1 | . 1 Core . | . . Reactor . | . . Propulsion 4 | . 4 Treads . | . . Leg 1 | . 1 Wheel 2 | . 2 Hover 1 | . 1 Flight . | . . Utility 1 | . 1 Device . | . . Storage . | . . Processor 1 | . 1 Hackware . | . . Protection . | . . Artifact . | . . Weapon 5 | . 5 Energy Gun 1 | . 1 Energy Cannon . | . . Ballistic Gun 4 | . 4 Ballistic Cannon . | . . Launcher . | . . Special Weapon . | . . Impact Weapon . | . . Slashing Weapon . | . . Piercing Weapon . | . . Special Melee Weapon . | . . Unidentified Prototypes . | . . Parts Lost 10 | . 10 Power 2 | . 2 Propulsion 3 | . 3 Utility . | . . Weapon 5 | . 5 Highest Loss Streak 6 | . 6 To Critical Strikes . | . . Average Slot Usage (%) 78 | . 78 Engine 7 | . 7 Leg 18 | . 18 Wheel 4 | . 4 Hover 1 | . 1 Storage 14 | . 14 Processor 8 | . 8 Ballistic Gun 23 | . 23 Naked Turns . | . . Heaviest Build 11 | 11 11 Greatest Support 20 | 20 20 Greatest Overweight (x) 2 | . 2 Average Overweight (x) . | . . Largest Inventory Capacity 8 | . 8 Average Capacity 8 | . 8 Most Carried 7 | . 7 Average Carried 5 | . 5 Final Capacity 8 | 8 8 Final Carried 6 | 6 5 Class Distribution -------------------- 100% | Mutant Dominant Class ---------------- Mutant | -10/Materials Resources | -11 -10 ----------- Run | Yrd Mat Matter Collected 325 | 200 125 Remotely . | . . Salvage Created 156 | . 156 Parts 9 | . 9 Haulers Intercepted . | . . Recyclers Shooed . | . . Parts Field Recycled . | . . Retrieved Matter . | . . Parts Self-Destructed . | . . Prevented . | . . Kills | -11 -10 ------- Run | Yrd Mat Combat Hostiles Destroyed 3 | . 3 Guns 2 | . 2 AOE 1 | . 1 Classes Destroyed 1 | . 1 Abomination 3 | . 3 Best Kill Streak 2 | . 2 Combat Bots Only 2 | . 2 Max Kills in Single Turn 1 | . 1 Gunslinging . | . . Exploded 1 | . 1 Melee . | . . Uniques/NPCs Destroyed . | . . Combat | -11 -10 -------- Run | Yrd Mat Hostile Shots Fired 80 | . 80 Missed 19 | . 19 Damage Taken 1086 | . 1086 Core 256 | . 256 Absorbed by Shields . | . . Core Remaining (%) 100 | 100 . Volleys Fired 42 | . 42 Largest 2 | . 2 Hottest 40 | . 40 Shots Fired 72 | . 72 Gun 72 | . 72 Cannon . | . . Launcher . | . . Special . | . . Kinetic 72 | . 72 Thermal . | . . Explosive . | . . Electromagnetic . | . . Robot Hit Streak 17 | . 17 Robot Miss Streak 5 | . 5 Penetration Max . | . . Secondary Targets 1 | . 1 Max Gunslinging Chain 1 | . 1 Shots Hit Robots 50 | . 50 Core Hits 15 | . 15 Critical Kills . | . . Critical Parts Destroyed . | . . Critical Strikes . | . . Melee Attacks . | . . Impact . | . . Slashing . | . . Piercing . | . . Sneak Attacks . | . . Combat Hostiles . | . . Follow-up Attacks . | . . Damage Inflicted 644 | . 644 Guns 504 | . 504 Cannons . | . . Explosions 140 | . 140 Melee . | . . Ramming . | . . Kinetic 504 | . 504 Thermal 140 | . 140 Explosive . | . . Electromagnetic . | . . Impact . | . . Slashing . | . . Piercing . | . . Highest Corruption . | . . Average Corruption . | . . Corruption Purged . | . . Corruption Blocked . | . . Overload Shots . | . . Overflow Damage 53 | . 53 Projectiles . | . . Explosions 53 | . 53 Melee . | . . Knockbacks . | . . Impact . | . . Kinetic . | . . Secondary . | . . Self-Inflicted Damage 114 | . 114 Shots 1 | . 1 Rammed . | . . Targets Rammed 1 | . 1 Kicked 1 | . 1 Crushed . | . . Highest Temperature 18 | . 18 Average Temperature 9 | . 9 Received Heat Transfer 441 | . 441 Siege Activations . | . . Robots Corrupted . | . . Combat Hostiles . | . . Parts Fried . | . . Impact Corruptions . | . . Robots Melted . | . . Combat Hostiles . | . . Parts Melted . | . . Heat Transferred 12 | . 12 Parts Sabotaged . | . . Parts Stolen . | . . Parts Stripped . | . . Power Chain Reactions . | . . Alert | -11 -10 ------- Run | Yrd Mat Peak Influence 53 | . 53 Initial . | . . Average 13 | . 13 Maximum Alert Level . | . . Low Security (%) 100 | . 100 Level 1 . | . . Level 2 . | . . Level 3 . | . . Level 4 . | . . Level 5 . | . . High Security . | . . Max Security . | . . Squads Dispatched 1 | . 1 Investigation . | . . Extermination . | . . Reinforcement 1 | . 1 Assault . | . . Garrison . | . . Intercept . | . . Searches Triggered . | . . Construction Impeded . | . . Haulers Reinforced . | . . Active Scanning Responses . | . . Cargo Convoy Interrupts . | . . Stealth | -11 -10 --------- Run | Yrd Mat Distress Signals 2 | . 2 Communications Jammed . | . . Distress Signals . | . . Times Spotted 6 | . 6 Peak Tracking Total 3 | . 3 Tactical Retreats . | . . Traps | -11 -10 ------- Run | Yrd Mat Traps Triggered . | . . Indirectly . | . . Trap Hack Attempts . | . . Triggered . | . . Disarmed . | . . Reprogrammed . | . . Reused . | . . Traps Extracted . | . . Installed . | . . Triggered . | . . Machines | -11 -10 ---------- Run | Yrd Mat Machines Disabled 3 | . 3 Max in Single Turn 3 | . 3 Machines Repaired . | . . Machines Dismantled . | . . Machines Sabotaged . | . . Overloaded Fab Kills . | . . Hacking | -11 -10 --------- Run | Yrd Mat Machines Accessed 1 | . 1 Terminals 1 | . 1 Fabricators . | . . Repair Stations . | . . Recycling Units . | . . Scanalyzers . | . . Garrison Access . | . . Total Hacks 2 | . 2 Successful 1 | . 1 Failed 1 | . 1 Catastrophic . | . . Database Lockouts . | . . Manual . | . . Terminals 2 | . 2 Fabricators . | . . Repair Stations . | . . Recycling Units . | . . Scanalyzers . | . . Garrison Access . | . . Terminal Hacks 1 | . 1 Locate Traps 1 | . 1 Fabricator Hacks . | . . Repair Station Hacks . | . . Recycling Unit Hacks . | . . Scanalyzer . | . . Garrison Access Hacks . | . . Unauthorized Hacks . | . . Terminals . | . . Fabricators . | . . Repair Stations . | . . Recycling Units . | . . Scanalyzers . | . . Garrison Access . | . . Data Cores Recovered . | . . Used . | . . Hacking Detections 1 | . 1 Full Trace Events . | . . Feedback Events . | . . Feedback Blocked . | . . Robot Schematics Acquired . | . . Robots Built . | . . Authchips . | . . Time . | . . Total Robot Build Rating . | . . Part Schematics Acquired . | . . Parts Built . | . . Authchips . | . . Time . | . . Total Part Build Rating . | . . Parts Repaired . | . . Time . | . . Parts Recycled . | . . Recycled Matter . | . . Retrieved Matter . | . . Retrieved Components . | . . Parts Scanalyzed . | . . Part Schematics Acquired . | . . Parts Damaged . | . . Bothacking | -11 -10 ------------ Run | Yrd Mat Used RIF Installer . | . . Robots Hacked . | . . Non-combat . | . . Combat . | . . Robot Hacks Applied . | . . Relay Couplers Released . | . . Fabnet Peak Effective % . | . . Robots Rewired . | . . Allies Hacked . | . . Hacks Repelled . | . . Allies | -11 -10 -------- Run | Yrd Mat Total Allies . | . . Largest Group . | . . Highest-Rated Group . | . . Highest-Rated Ally . | . . Total Orders . | . . Ally Attacks . | . . Total Damage . | . . Kills . | . . Allies Corrupted . | . . Allies Melted . | . . Intel | -11 -10 ------- Run | Yrd Mat Robot Analysis Total . | . . Derelict Logs Recovered . | . . Drone Launches . | . . Drone Recoveries . | . . Exploration | -11 -10 ------------- Run | Yrd Mat Turns Passed 283 | . 283 Spaces Moved 159 | 1 158 Core 5 | . 5 Treads . | . . Legs 92 | 1 91 Wheels 30 | . 30 Hover 32 | . 32 Flight . | . . Fastest Speed 60 | 120 60 Average Speed 102 | 120 102 Slowest Speed 150 | 120 150 Overloaded Moves . | . . Propulsion Burnouts . | . . Robots Hopped . | . . Cave-ins Triggered . | . . Exploration Rate (%) 15 | 2 29 Regions Visited 1 Branch Regions . Pre-discovered Areas . | . . Known Exits Taken . | . . Unknown Exits Taken 1 | 1 . Scrap Searched . | . . Spaces Dug . | . . Terrain Destroyed 32 | . 32 Melee . | . . Projectile . | . . AOE 32 | . 32 Terrain Rammed . | . . Walls Destroyed . | . . Machines Disabled . | . . Actions | -11 -10 --------- Run | Yrd Mat Total 214 | . 214 Wait 2 | . 2 Move 158 | . 158 Hop . | . . Pick Up . | . . Fast Attach 6 | . 6 Attach 2 | . 2 Detach . | . . Swap 3 | . 3 Drop . | . . Fire 42 | . 42 Melee . | . . Ram . | . . Kick 1 | . 1 Crush . | . . Escape Stasis . | . . Rewire . | . . Trap . | . . Miscellaneous . | . . Route ------- -11/Scrapyard -10/Materials History --------- Turn | Location | Event 1 | -11/Scrapyard | Discovered new exit (range 0) 1 | -11/Scrapyard | Entered Materials 181 | -10/Materials | Core integrity fell below 50% 233 | -10/Materials | Lost 6 parts (1p2n3w) 237 | -10/Materials | Discovered new exit (range 18) 265 | -10/Materials | Core integrity fell below 20% 284 | -10/Materials | Destroyed by Minor Abomination with Medium Laser Last Messages --------------- 00236_ Acquired 27 matter. 00237_ EXIT=FOUND (Blocked) 00241_ Unstable Anomaly suddenly flashes brightly. 00249_ K-01 Serf collects debris. 00252_ Lgt. Assault Rifle destroyed. 00252_ K-01 Serf collects debris. 00255_ Wheel destroyed. 00260_ Acquired Assault Rifle. 00269_ Minor Abomination spits out Aluminum Leg. 00269_ Minor Abomination spits out Wheel. 00269_ Minor Abomination feeds off Hungry Anomaly, taking Aluminum Leg, Com. Wheel. 00269_ Hungry Anomaly eats Aluminum Leg. 00270_ Minor Abomination spits out Com. Wheel. 00270_ Minor Abomination feeds off Hungry Anomaly, taking Wheel. 00270_ Hungry Anomaly eats Assault Rifle. 00271_ Hungry Anomaly eats Wheel. 00272_ Hungry Anomaly eats Com. Wheel. 00278_ Assault Rifle destroyed. 00280_ K-01 Serf collects debris. Map ----- +----------------------------------------------------+ | + #??????????? | | ####+#########??????????? | | """ #? ?????????????????? | | ######## """"" ## #???????????????? | | # # """"" ##""" #???????????????? | | # # """"" ##""" #???????????????? | | #""" + """ ##""" #???????????????? | | #""" # ## #???????????????? | | #""" # #########???????????????? | | # # """ #???????????????????????? | | ###+#### """"" ###+##???????????????????????? | | ??# #??# """"" #????????????????????????????? | | ??# #### """"" #????????????????????????????? | | ??# ##"" """ #????????????????????????????? | | ??# ##"Y #????????????????????????????? | | ### ##"" %% #????????????????????????????? | | """+#### """ % #????????????????????????????? | | # """"" #????????????????????????????? | | " # """"" #????????????????????????????? | | # """"" #????????????????????????????? | | ! + """ #############?????????????????? | | # % # #?????????????????? | | # + #?????????????????? | | # # #?????????????????? | | ######### # A #?????????????????? | | ########???????# # @ #?????????????????? | | #####?????????# # #?????????????????? | | ##?????????????# # !#?????????????????? | | ???????????????# #############?????????????????? | | ???????????????# #?????????????????????????????? | | ??????????????? "?????????????????????????????? | | ??????????????? ?????????????????????????????? | | ??????????????? % ?????????????????????????????? | | ??????????????# <% ?????????????????????????????? | | ??????????????# ?????????????????????????????? | | ??????????????# ?????????????????????????????? | | ??????????????# "?????????????????????????????? | | ??????????????## ??????????????????????????????? | | ???????????????? ??????????????????????????????? | | ?????????????????????????????????????????????????? | | ?????????????????????????????????????????????????? | | ?????????????????????????????????????????????????? | | ?????????????????????????????????????????????????? | | ?????????????????????????????????????????????????? | | ?????????????????????????????????????????????????? | | ?????????????????????????????????????????????????? | | ?????????????????????????????????????????????????? | | ?????????????????????????????????????????????????? | | ?????????????????????????????????????????????????? | | ?????????????????????????????????????????????????? | +----------------------------------------------------+ Best States ------------- Heat Dissipation 25 Energy Generation 10 Energy Capacity 125 Matter Stores 300 Matter Capacity 300 Sight Range 18 Terrain Scan Density 10 Evasion (%) 55 Item Schematics ----------------- None Robot Schematics ------------------ None Fabricated ------------ Nothing Alien Tech Used ----------------- None Achievements -------------- None Challenges ------------ None Game ------ Seed GaussSupersonicFlakker Manual? 0 Play Time 00:03:43 Cumulative 722.1 hours Start 2024.04.20 @ 13:07:48 End 2024.04.20 @ 13:09:42 Sessions 1 Manual Loads 0 Difficulty Rogue Special Mode Halloween2019/Abominations Game No. 777 Rogue 502 Adventurer 123 Explorer 152 Win Type - Total 26 Types 20/0/4/1/0/0/0/1/0 Lore% 83 Gallery% 92 Achievement% 76 Wizard Run 0 Options --------- Layout 0 ASCII 0 Keyboard 1 Movement Numpad Keybinds 0 Fullscreen 2 Font 18/Terminus Map View 76x50 Zoom Use 0% Tactical HUD 1 Map Filters NONE Filters NONE Steam 1 RUN: 90d37050-19f2-420c-9180-f7903a352904